Cogmind - Beta 16 @@@ ROGUE MODE // 2025.10.29 @ 22:53:42 Player: Mxykikker Result: Destroyed by Y-45 Defender with Heavy Assault Rifle Performance ------------- Evolutions (0) 0 Regions Visited (2) 400 Robots Destroyed (37) 185 Value Destroyed (610) 610 Prototype IDs (1) 20 Alien Tech Used (0) 0 Bonus (-1) -1 TOTAL SCORE: 1214 Bonus ------- Friendly Fire -1 Cogmind --------- Core Integrity 0/250 Matter 282/300 Energy 248/250 System Corruption 1% Temperature Cool (0) Movement Treading (160) Location -10/Subcaves Parts ------- > --- POWER (1) -------- Ion Engine > --- PROPULSION (2) --- Light Treads Light Treads > --- UTILITY (2) ------ Large Storage Unit > --- WEAPON (2) ------- Improved Assault Rifle Improved Assault Rifle > --- INVENTORY (15) --- Wheel Wheel Small Storage Unit High-capacity Matter Pod (200) Scrap Shield Rocket Launcher Rocket Launcher Mining Claw Peak State ------------ > --- POWER ------------ Ion Engine > --- PROPULSION ------- Light Treads Light Treads > --- UTILITY ---------- Small Storage Unit Seismic Detector > --- WEAPON ----------- Improved Assault Rifle Improved Assault Rifle > --- INVENTORY -------- Wheel Wheel Improved Assault Rifle Improved Assault Rifle Rocket Launcher Mining Laser [Rating: 12] Favorites ----------- Power Ion Engine Engine Ion Engine Propulsion Light Treads Treads Light Treads Utility Large Storage Unit Device Seismic Detector Storage Large Storage Unit Protection Scrap Shield Weapon Improved Assault Rifle Energy Gun Medium Laser Ballistic Gun Improved Assault Rifle Launcher Rocket Launcher Slashing Weapon Mining Claw Build | -11 -10 -10 ------- Run | Yrd Mat Sub Slots Evolved . | . . . Power . | . . . Propulsion . | . . . Utility . | . . . Weapon . | . . . Parts Attached 19 | 7 12 . Power 2 | 1 1 . Engine 2 | 1 1 . Core . | . . . Reactor . | . . . Propulsion 4 | 2 2 . Treads 4 | 2 2 . Leg . | . . . Wheel . | . . . Hover . | . . . Flight . | . . . Utility 4 | 2 2 . Device 1 | 1 . . Storage 2 | 1 1 . Processor . | . . . Hackware . | . . . Protection 1 | . 1 . Artifact . | . . . Weapon 9 | 2 7 . Energy Gun 1 | 1 . . Energy Cannon . | . . . Ballistic Gun 5 | 1 4 . Ballistic Cannon . | . . . Launcher 2 | . 2 . Special Weapon . | . . . Impact Weapon . | . . . Slashing Weapon 1 | . 1 . Piercing Weapon . | . . . Special Melee Weapon . | . . . Unidentified Prototypes 1 | . 1 . Parts Lost 6 | . 5 1 Power 1 | . 1 . Propulsion 2 | . 1 1 Utility 1 | . 1 . Weapon 2 | . 2 . Highest Loss Streak 4 | . 4 1 To Critical Strikes . | . . . Average Backups 8 | 1 8 8 Power . | . . . Propulsion 2 | . 2 2 Utility 1 | . 1 3 Weapon 4 | . 4 3 Tool/Special . | . . . Unused Backups 6 | 2 1 3 Power . | . . . Propulsion 4 | 2 . 2 Utility 1 | . . 1 Weapon 1 | . 1 . Tool/Special . | . . . Average Slot Usage (%) 91 | . 92 80 Engine 13 | . 12 14 Treads 27 | . 27 23 Device 8 | . 8 . Storage 13 | . 13 14 Ballistic Gun 26 | . 27 23 Peak Build Rating 12 | 7 12 11 Average Rating 11 | 5 11 10 On Entrance 6 | . 7 11 Avg Prop Armor Cover (%) . | . . . Naked Turns . | . . . Heaviest Build 32 | 14 32 32 Greatest Support 40 | 40 40 40 Greatest Overweight (x) 3 | 3 1 1 Average Overweight (x) . | . . . Largest Inventory Capacity 15 | 8 15 15 Average Capacity 12 | 7 12 15 Most Carried 13 | 3 13 10 Average Carried 8 | 1 8 9 Final Capacity 15 | 8 15 15 Final Carried 10 | 3 10 9 Class Distribution -------------------- 100% | Mutant Dominant Class ---------------- Mutant | -10/Materials Mutant | -10/Subcaves Resources | -11 -10 -10 ----------- Run | Yrd Mat Sub Matter Collected 1058 | 203 738 117 Remotely . | . . . Salvage Created 914 | 196 639 79 Parts 73 | 17 54 2 Haulers Intercepted 2 | . 2 . Recyclers Shooed . | . . . Parts Field Recycled . | . . . Retrieved Matter . | . . . Parts Self-Destructed 2 | . . 2 Prevented . | . . . Parts Restored . | . . . Kills | -11 -10 -10 ------- Run | Yrd Mat Sub Combat Hostiles Destroyed 22 | . 19 3 Guns 20 | . 19 1 AOE 2 | . . 2 Classes Destroyed 10 | 3 7 . Worker 4 | 2 2 . Builder 2 | . 2 . Tunneler 3 | 3 . . Hauler 2 | . 2 . Recycler 1 | 1 . . Operator 1 | . 1 . Watcher 2 | . 2 . Swarmer 12 | . 12 . Grunt 7 | . 4 3 Subdweller 3 | . 3 . Best Kill Streak 7 | 3 7 2 Combat Bots Only 6 | . 6 2 Max Kills in Single Turn 2 | 2 2 1 Gunslinging 1 | . 1 . Exploded 1 | . . 1 Melee . | . . . Uniques/NPCs Destroyed . | . . . Combat | -11 -10 -10 -------- Run | Yrd Mat Sub Hostile Shots Fired 117 | . 89 28 Missed 22 | . 18 4 Hits 95 | . 71 24 Projectile 95 | . 71 24 Critical Strikes 1 | . 1 . Damage Taken 1195 | . 849 346 Core 256 | . 188 68 Absorbed by Shields . | . . . Core Remaining (%) 100 | 100 . . Volleys Fired 83 | 14 54 15 Largest 2 | 2 2 2 Hottest 70 | 70 56 46 Shots Fired 157 | 28 103 26 Gun 151 | 28 101 22 Cannon . | . . . Launcher 6 | . 2 4 Special . | . . . Kinetic 137 | 14 101 22 Thermal 14 | 14 . . Explosive 6 | . 2 4 Electromagnetic . | . . . Robot Hit Streak 16 | 4 16 8 Robot Miss Streak 4 | 2 4 1 Penetration Max . | . . . Secondary Targets 6 | . 6 . Max Gunslinging Chain 1 | . 1 . Shots Hit Robots 102 | 16 65 21 Core Hits 52 | 10 36 6 Critical Kills . | . . . Critical Parts Destroyed . | . . . Critical Strikes 1 | 1 . . Burn 1 | 1 . . Melee Attacks 2 | . 2 . Impact . | . . . Slashing 2 | . 2 . Piercing . | . . . Sneak Attacks . | . . . Combat Hostiles . | . . . Follow-up Attacks . | . . . Damage Inflicted 1894 | 163 1193 538 Guns 1440 | 163 997 280 Cannons . | . . . Explosions 348 | . 90 258 Melee . | . . . Ramming 106 | . 106 . Kinetic 1378 | 101 997 280 Thermal 62 | 62 . . Explosive 348 | . 90 258 Electromagnetic . | . . . Impact . | . . . Slashing . | . . . Piercing . | . . . Highest Corruption 1 | . 1 1 Average Corruption 1 | . 1 1 Corruption Purged . | . . . Corruption Blocked . | . . . Effects 5 | . 4 1 Message Errors 1 | . . 1 Matter Fused 1 | . 1 . Heat Flow Errors 2 | . 2 . Parts Rejected 1 | . 1 . Overload Shots . | . . . Overflow Damage . | . . . Projectiles . | . . . Explosions . | . . . Melee . | . . . Knockbacks 1 | . 1 . Impact 1 | . 1 . Kinetic . | . . . Secondary . | . . . Self-Inflicted Damage . | . . . Shots . | . . . Rammed 24 | . 24 . Targets Rammed 25 | . 25 . Kicked . | . . . Crushed 1 | . 1 . Highest Temperature 124 | 110 124 . Average Temperature 43 | 51 35 . Received Heat Transfer 366 | . 189 177 Siege Activations . | . . . Martial Activations . | . . . Shielding Activations . | . . . Robots Disrupted . | . . . Combat Hostiles . | . . . Robots Corrupted . | . . . Combat Hostiles . | . . . Parts Fried . | . . . Impact Corruptions . | . . . Robots Melted . | . . . Combat Hostiles . | . . . Parts Melted 2 | 1 1 . Heat Transferred 259 | 259 . . Parts Sabotaged . | . . . Parts Stolen . | . . . Parts Stripped . | . . . Power Chain Reactions . | . . . Alert | -11 -10 -10 ------- Run | Yrd Mat Sub Maximum Alert Level 1 | . 1 . Low Security (%) 94 | 100 94 . Level 1 5 | . 5 . Level 2 . | . . . Level 3 . | . . . Level 4 . | . . . Level 5 . | . . . High Security . | . . . Max Security . | . . . Peak Influence 220 | 15 220 . Initial 9 | . 9 . Average 81 | 2 87 . Influence Increases 649 | 30 539 80 Destroy 0b10 Robot/C 380 | . 320 60 Destroy 0b10 Robot/NC 75 | 30 45 . Destroy Leader 98 | . 78 20 Successful Hack 31 | . 31 . Select Force Hacks 30 | . 30 . Destroy Structure 20 | . 20 . Lose Combat Pursuer 15 | . 15 . Influence Decreases 553 | 15 426 112 Entered New Map 68 | . 6 62 Time Decay 425 | 15 370 40 Lost Part 60 | . 50 10 Squads Dispatched 3 | . 3 . Investigation 2 | . 2 . Extermination . | . . . Reinforcement 1 | . 1 . Assault . | . . . Garrison . | . . . Intercept . | . . . Searches Triggered . | . . . Construction Impeded . | . . . Haulers Reinforced . | . . . Active Scanning Responses . | . . . Cargo Convoy Interrupts . | . . . Stealth | -11 -10 -10 --------- Run | Yrd Mat Sub Distress Signals 1 | . 1 . Communications Jammed . | . . . Distress Signals . | . . . Times Spotted 38 | . 33 5 Peak Tracking Total 6 | . 6 3 Tactical Retreats 1 | . 1 . Traps | -11 -10 -10 ------- Run | Yrd Mat Sub Traps Triggered 1 | . 1 . Indirectly . | . . . Trap Hack Attempts . | . . . Triggered . | . . . Disarmed . | . . . Reprogrammed . | . . . Reused . | . . . Traps Extracted . | . . . Installed . | . . . Triggered . | . . . Machines | -11 -10 -10 ---------- Run | Yrd Mat Sub Machines Disabled . | . . . Max in Single Turn . | . . . Machines Repaired . | . . . Machines Dismantled . | . . . Machines Sabotaged . | . . . Overloaded Fab Kills . | . . . Hacking | -11 -10 -10 --------- Run | Yrd Mat Sub Machines Accessed 7 | . 7 . Terminals 5 | . 5 . Fabricators . | . . . Repair Stations . | . . . Recycling Units 2 | . 2 . Scanalyzers . | . . . Garrison Access . | . . . Total Hacks 16 | . 16 . Successful 12 | . 12 . Failed 4 | . 4 . Catastrophic . | . . . Database Lockouts . | . . . Manual 9 | . 9 . Terminals 11 | . 11 . Fabricators . | . . . Repair Stations . | . . . Recycling Units 5 | . 5 . Scanalyzers . | . . . Garrison Access . | . . . Terminal Hacks . | . . . Fabricator Hacks . | . . . Repair Station Hacks . | . . . Recycling Unit Hacks 4 | . 4 . Report Inventory 3 | . 3 . Retrieve Matter 1 | . 1 . Scanalyzer . | . . . Garrison Access Hacks . | . . . Unauthorized Hacks 8 | . 8 . Terminals 7 | . 7 . Botnet 2 | . 2 . Skim 5 | . 5 . Fabricators . | . . . Repair Stations . | . . . Recycling Units 1 | . 1 . Tunnel 1 | . 1 . Scanalyzers . | . . . Garrison Access . | . . . Data Cores Recovered . | . . . Used . | . . . Hacking Detections 6 | . 6 . Full Trace Events 1 | . 1 . Feedback Events . | . . . Feedback Blocked . | . . . Robot Schematics Acquired . | . . . Robots Built . | . . . Authchips . | . . . Time . | . . . Total Robot Build Rating . | . . . Part Schematics Acquired . | . . . Parts Built . | . . . Authchips . | . . . Time . | . . . Total Part Build Rating . | . . . Part Studies Acquired . | . . . Parts Repaired . | . . . Time . | . . . Parts Recycled . | . . . Recycled Matter . | . . . Retrieved Matter . | . . . Retrieved Components . | . . . Parts Scanalyzed . | . . . Part Schematics Acquired . | . . . Parts Damaged . | . . . Bothacking | -11 -10 -10 ------------ Run | Yrd Mat Sub Used RIF Installer . | . . . Robots Hacked . | . . . Non-combat . | . . . Combat . | . . . Robot Hacks Applied . | . . . Relay Couplers Released . | . . . Fabnet Peak Effective % . | . . . Robots Rewired . | . . . Allies Hacked . | . . . Hacks Repelled . | . . . Allies | -11 -10 -10 -------- Run | Yrd Mat Sub Total Allies . | . . . Largest Group . | . . . Highest-Rated Group . | . . . Highest-Rated Ally . | . . . Total Orders . | . . . Ally Attacks . | . . . Total Damage . | . . . Kills . | . . . Allies Corrupted . | . . . Allies Melted . | . . . Intel | -11 -10 -10 ------- Run | Yrd Mat Sub Active Infowar (turns) 1019 | 42 977 . Seismic 1019 | 42 977 . Robot Analysis Total . | . . . Derelict Logs Recovered . | . . . Drone Launches . | . . . Drone Recoveries . | . . . Exploration | -11 -10 -10 ------------- Run | Yrd Mat Sub Turns Passed 1777 | 116 1571 90 Spaces Moved 887 | 38 823 26 Core 7 | 7 . . Treads 880 | 31 823 26 Legs . | . . . Wheels . | . . . Hover . | . . . Flight . | . . . Fastest Speed 50 | 50 160 160 Average Speed 160 | 158 160 175 Slowest Speed 240 | 200 240 240 Overloaded Moves . | . . . Propulsion Burnouts . | . . . Robots Hopped . | . . . Potential Cave-ins . | . . . Cave-ins Triggered . | . . . Exploration Rate (%) 28 | 4 75 5 Regions Visited 2 Branch Regions 1 Pre-discovered Areas 3 | . 3 . Known Exits Taken . | . . . Unknown Exits Taken 2 | 1 1 . Scrap Searched . | . . . Spaces Dug . | . . . Terrain Destroyed 51 | . 20 31 Melee . | . . . Projectile . | . . . AOE 51 | . 20 31 Terrain Rammed . | . . . Walls Destroyed . | . . . Machines Disabled . | . . . Actions | -11 -10 -10 --------- Run | Yrd Mat Sub Total 1059 | 67 946 46 Wait 5 | . 5 . Move 885 | 37 822 26 Hop . | . . . Pick Up 20 | 6 13 1 Fast Attach 11 | 7 4 . Attach 5 | . 4 1 Detach 1 | . 1 . Swap 13 | . 11 2 Drop 9 | 3 5 1 Fire 83 | 14 54 15 Melee 2 | . 2 . Ram . | . . . Kick . | . . . Crush 25 | . 25 . Escape Stasis . | . . . Rewire . | . . . Trap . | . . . Miscellaneous . | . . . Route ------- -11/Scrapyard -10/Materials (discovered 5 exits: [*Mat x3] / [*Min] / [*Sub]) -10/Subcaves History --------- Turn | Location | Event 7 | -11/Scrapyard | Discovered new exit (range 16) 117 | -11/Scrapyard | Entered Materials 284 | -10/Materials | Discovered new exit (range 16) 300 | -10/Materials | Build established: Mutant 428 | -10/Materials | Discovered new exit (range 5) 481 | -10/Materials | Discovered new exit (range 8) 625 | -10/Materials | Discovered new exit (range 12) 917 | -10/Materials | Derelicts attacked the area 1101 | -10/Materials | Core integrity fell below 50% 1255 | -10/Materials | Discovered new exit (range 7) 1257 | -10/Materials | Loaded intel: 8 trap records 1331 | -10/Materials | Learned location of Mines (-8) 1373 | -10/Materials | Lost 4 parts (1p1n2w) 1395 | -10/Materials | Loaded intel: 7 terminal locations 1447 | -10/Materials | Learned 2 Storage zone layouts 1490 | -10/Materials | Learned location of Subcaves (-10) 1521 | -10/Materials | Learned 4 Subcaves zone layouts 1560 | -10/Materials | Learned Storage stockpile data 1608 | -10/Materials | Learned location of 2 exits from Mines 1688 | -10/Materials | Entered Subcaves 1689 | -10/Subcaves | Approached by a straggling Scientist 1692 | -10/Subcaves | Core integrity fell below 20% 1778 | -10/Subcaves | Destroyed by Y-45 Defender with Heavy Assault Rifle Last Messages --------------- 01701_ Subatomizers dissect the Ion Engine. 01701_ 24-WIX(c) destroyed. 01709_ The unstable cave ceiling collapses. 01711_ X0W9DJVRLZK &0VJTLUNDC6XS4X# 01716_ Subatomizers dissect the Lgt. Ion Engine. 01718_ Lgt. Treads destroyed. 01729_ Subatomizers dissect the Lgt. Ion Engine. 01729_ Destroyed Imp. Heat Sink. 01731_ The unstable cave ceiling collapses. 01732_ G-47 Trooper destroyed. 01742_ Acquired 57 matter. 01743_ Subatomizers dissect the Lgt. Nuclear Core. 01747_ Lgt. Nuclear Core fries itself beyond repair. 01751_ Acquired 48 matter. 01752_ Acquired 12 matter. 01756_ Subatomizers dissect the Lgt. Ion Engine. 01756_ Acquired Wheel. 01757_ Dropped Wheel. Map ----- +----------------------------------------------------+ | ????????????????????????????????????????????????? | | ????????????????????????????????????????????????? | | ????????????????????????????????????????????????? | | ????????????????????????????????????????????????? | | ????????????????????????????????????????????????? | | ????????????????????????????????????????????????? | | ????????????????????????????????????????????????? | | ????????????????????????????????????????????????? | | ????????????????????????????????????????????????? | | ????????????????????????????????????????????????? | | ?????????????????????????? ????????????????????? | | ????????????????????? ???? ???????????????????? | | ????????????????????# ??? #???????????????????? | | ????????????????????# ??# ##??????????????????? | | ????????????????###? ## ##?????????????????? | | ????????????????# ## #?????????????????? | | ????????????????? ??????????????????? | | ?????????????????? ??????????????????? | | ??????????????????? ???????????????????? | | ???????????????????# ???????????????????? | | ???????????????????# ????????????????????? | | ???????????????????? ????????????????????? | | ????????????????????? Y #????????????????????? | | ?????????????????????? ##???????????????????? | | ???????????????????????# #???????????????????? | | ???????????????????????##@ #????????????????????? | | ???????????????????????# #????????????????????? | | ???????????????????????# ##???????????????????? | | ???????????????????????# #???????????????????? | | ???????????????????????## ##??????????????????? | | ????????????????????????# ###????????????????? | | ???????????????????????## ##???????????????? | | ??????????????????????## # #???????????????? | | ??????????????????????# #???????????????? | | ??????????????????????# = ## #???????????????? | | ?????????????#######?## *####???????????????? | | ?????????????# # ##????????????????? | | ???????????? ##???????????????? | | ???????????? #???????????????? | | ????????????? ## # # ## #??????????????? | | ???????????????## #### ##?###??????????????? | | ???????????????# # #### #??????????????????? | | ??????????? # # #??????????????????? | | ???????????? # ##??????????????????? | | ???????????????# % ### #??????????????? | | ????????????# #??????????????? | | ??????????# # ##??????????????? | | ?????????? ##???????????????? | | ??????????? ## ##????????????????? | | ??????????? ###?????????????????? | +----------------------------------------------------+ Best States ------------- Heat Dissipation 25 Energy Generation 10 Energy Capacity 250 Matter Stores 300 Matter Capacity 300 Sight Range 16 Terrain Scan Density 10 Armor Coverage 800 Evasion (%) 40 Recoil Reduction 2 Item Schematics ----------------- None Robot Schematics ------------------ None Fabricated ------------ Nothing Repaired ---------- Nothing Studied --------- None Alien Tech Used ----------------- None Achievements -------------- None Challenges ------------ None Game ------ Seed GuidedBehemothShotgun Manual? 0 Play Time 00:13:03 Cumulative 91.3 hours Start 2025.10.29 @ 22:40:42 End 2025.10.29 @ 22:53:42 Sessions 1 Manual Loads 0 Difficulty Rogue Special Mode None Game No. 142 Rogue 142 Adventurer 0 Explorer 0 Win Type - Total 0 Types 0/0/0/0/0/0/0/0/0/0 Lore% 31 Gallery% 32 Achievement% 26 Wizard Run 0 Options --------- Layout 1 ASCII 0 Keyboard 0 Movement Arrows Keybinds 0 Fullscreen 1 Font 24/Smallcaps Map View 50x35 Zoom Use 0% Tactical HUD 1 Map Filters NONE Filters NONE Steam 1 RUN: 88063127-f889-4b4b-9986-7c91239fabbf